lending/lending_fUSD_20250501
["ID","MTS","AMOUNT","RATE_DAILY","PERIOD"]
[359555590,1746120655693,-151.0,0.000265,7]
[359555591,1746120655703,-255.658181,0.000265,7]
[359555592,1746120655712,-151.0,0.000265,7]
[359555593,1746120655722,-255.658181,0.000265,7]
[359555594,1746120655731,-151.0,0.000265,7]
[359555595,1746120655740,-151.0,0.000265,7]
[359555596,1746120655750,-151.0,0.000265,7]
[359555597,1746120655759,-151.0,0.000265,7]
[359555598,1746120655769,-151.0,0.000265,7]
[359555599,1746120655779,-151.0,0.000265,7]
[359555600,1746120655788,-233.795229,0.000265,7]
[359555601,1746120655798,-233.795229,0.000265,7]
[359555602,1746120655808,-681.902131,0.000265,7]
[359555603,1746120655817,-681.902131,0.000265,7]
[359555604,1746120655826,-816.700963,0.000265,7]
[359555605,1746120655835,-816.700963,0.000265,7]
[359555606,1746120655845,-816.700963,0.000265,7]
[359555607,1746120655855,-816.700963,0.000265,7]
[359555608,1746120655865,-151.0,0.000265,7]
[359555609,1746120655875,-283.415114,0.000265,7]
[359555610,1746120655884,-283.415114,0.000265,7]
[359555611,1746120655893,-151.0,0.000265,7]
[359555612,1746120655903,-151.0,0.000265,7]
[359555613,1746120655912,-151.0,0.000265,7]
[359555614,1746120655921,-151.0,0.000265,7]
[359555615,1746120655931,-151.0,0.000265,7]
[359555616,1746120655940,-151.0,0.000265,7]
[359555617,1746120655949,-151.0,0.000265,7]
[359555618,1746120655959,-455.93,0.00026712,2]
[359555619,1746120655968,-264.0,0.0002679,2]
[359555620,1746120655977,-255.658181,0.000268,7]
[359555621,1746120655987,-255.658181,0.000268,7]
[359555622,1746120655998,-233.795229,0.000268,7]
[359555623,1746120656009,-233.795229,0.000268,7]
[359555624,1746120656019,-151.0,0.000268,7]
[359555625,1746120656032,-151.0,0.000268,7]
[359555626,1746120656042,-151.0,0.000268,7]
[359555627,1746120656051,-152.172336,0.00026833,7]
[359555628,1746120656060,-151.0,0.00026833,7]
[359555629,1746120656070,-268.908897,0.00026833,7]
[359555630,1746120656079,-155.256402,0.00026833,7]
[359555631,1746120656090,-155.256402,0.00026833,7]
[359555632,1746120656101,-396.37275043,0.00026872,2]
[359555633,1746120656110,-20754.3243956,0.00026873,2]
[359555634,1746120656119,-8644.18701981,0.00026878,2]
[359555635,1746120656128,-151.0,0.00026878,7]
[359555636,1746120656138,-327.824189,0.00026878,7]
[359555637,1746120656147,-327.824189,0.00026878,7]
[359555638,1746120656157,-1206.0,0.00026878,2]
[359555639,1746120656167,-797.0,0.00026878,2]
[359555640,1746120656175,-2070.0,0.00026878,2]
[359555641,1746120656186,-913.0,0.00026878,2]
[359555642,1746120656195,-580.0,0.00026878,2]
[359555643,1746120656205,-1449.0,0.00026878,2]
[359555644,1746120656214,-549.0,0.00026878,2]
[359555645,1746120656223,-604.886,0.00026878,2]
[359555646,1746120656233,-4003.0,0.00026878,2]
[359555647,1746120656242,-153.0,0.00026878,2]
[359555648,1746120656251,-153.0,0.00026878,2]
[359555649,1746120656260,-1340.0,0.00026878,2]
[359555650,1746120656269,-4950.11410307,0.00026878,2]
[359555651,1746120656317,-878.0,0.00023878,2]
[359555652,1746120656326,-1799.88589693,0.00026878,2]
[359555653,1746120656335,-38.69010307,0.00026883,2]
[359555654,1746120656346,-358.20401213,0.00026883,2]
[359555655,1746120656363,-5000.0,0.00023778,2]
[359555656,1746120656372,-46.5858848,0.00026883,2]
[359555657,1746120656382,-212.969675,0.000269,7]
[359555658,1746120656391,-212.969675,0.000269,7]
[359555659,1746120656400,-142321.44335586,0.000269,2]
[359555660,1746120656411,-47421.55664414,0.000269,2]
[359555661,1746120656420,-500.0,0.00026999,2]
[359555662,1746120656429,-250.0,0.00027,2]
[359555663,1746120656438,-999.12494094,0.00027,2]
[359555664,1746120656447,-180.83200479,0.00027,2]
[359555665,1746120656456,-151.0,0.00027,7]
[359555666,1746120656465,-500.0,0.00027,2]
[359555667,1746120656474,-151.0,0.00027,7]
[359555668,1746120656484,-1746.531181,0.00027,7]
[359555669,1746120656493,-1746.531181,0.00027,7]
[359555670,1746120656502,-151.0,0.00027,7]
[359555671,1746120656511,-151.0,0.00027,7]
[359555672,1746120656520,-154.39747,0.00027,7]
[359555673,1746120656529,-362.0,0.00027,2]
[359555674,1746120656539,-362.0,0.00027,2]
[359555675,1746120656549,-150.0,0.00027007,2]
[359555676,1746120656558,-150.0,0.00027007,2]
[359555677,1746120656567,-150.0,0.00027007,2]
[359555678,1746120656578,-151.0,0.00027007,7]
[359555679,1746120656587,-218.727112,0.00027007,7]
[359555680,1746120656597,-239.84119403,0.00027035,2]
[359555681,1746120656607,-300.0,0.000271,2]
[359555682,1746120656616,-151.0,0.000271,7]
[359555683,1746120656625,-151.0,0.000271,7]
[359555684,1746120656635,-151.0,0.000271,7]
[359555685,1746120656646,-3550.97,0.00027123,2]
[359555686,1746120656656,-151.0,0.00027186,7]
[359555687,1746120656666,-151.0,0.00027186,7]
[359555688,1746120656676,-151.0,0.00027186,7]
[359555689,1746120656686,-500.0,0.00027299,2]
[359555690,1746120656695,-599.999999,0.000273,2]
[359555691,1746120656705,-6077.46897222,0.00027342,2]
[359555692,1746120656714,-20754.3243956,0.00027388,2]
[359555693,1746120656724,-151.0,0.00027397,7]
[359555694,1746120656734,-500.0,0.00027397,2]
[359555695,1746120656743,-500.0,0.00027397,2]
[359555696,1746120656753,-500.0,0.00027397,2]
[359555697,1746120656762,-354.42326138,0.00027397,2]
[359555698,1746120656772,-178.0,0.00027397,2]
[359555699,1746120656781,-500.0,0.00027397,2]
[359555700,1746120656791,-198.0,0.00027397,2]
[359555701,1746120656801,-151.0,0.00027397,7]
[359555702,1746120656810,-151.0,0.00027397,7]
[359555703,1746120656819,-700.0,0.00027397,2]
[359555704,1746120656829,-7553.59,0.00027397,2]
[359555705,1746120656838,-1000.0,0.00027397,2]
[359555706,1746120656847,-499.8,0.00027397,2]
[359555707,1746120656857,-300.0,0.00027397,2]
[359555708,1746120656867,-500.0,0.00027398,10]
[359555709,1746120656876,-500.0,0.00027398,10]
[359555710,1746120656886,-500.0,0.00027398,10]
[359555711,1746120656895,-318.81715013,0.00027398,10]
[359555712,1746120656905,-500.0,0.00027398,10]
[359555713,1746120656915,-500.0,0.00027398,10]
[359555714,1746120656925,-101348.29982542,0.00027399,2]
[359555715,1746120656937,-59941.443,0.00027399,2]
[359555716,1746120656950,-45707.421,0.00027399,2]
[359555717,1746120656961,-27657.16378,0.00027399,2]
[359555718,1746120656972,-22096.52072,0.00027399,2]
[359555719,1746120656983,-3036.24757769,0.00027399,2]
[359555721,1746120724485,-5815.3398,0.000199,2]
[359555722,1746120795227,500.0,0.00032877,120]
[359555723,1746120836602,500.0,0.00032876,60]
[359555724,1746120836924,500.0,0.00032876,60]
[359555725,1746120837256,500.0,0.00032876,60]
[359555726,1746120838048,500.0,0.00032876,60]
[359555727,1746120838402,500.0,0.00032876,60]
[359555728,1746120838781,500.0,0.00032876,60]
[359555729,1746120839194,500.0,0.00032876,60]
[359555730,1746120839553,500.0,0.00032876,60]
[359555731,1746120839891,500.0,0.00032876,60]
[359555732,1746120840543,500.0,0.00032876,60]
[359555733,1746120840823,500.0,0.00032876,60]
[359555734,1746120841618,485.29738817,0.00032876,60]
[359555736,1746120991691,150.0,0.00032875,60]
[359555737,1746121030084,-150.0,0.00021355,2]
[359555738,1746121030107,-151.0,0.00021559,2]
[359555739,1746121030130,-199.0,0.00021559,2]
[359555740,1746121047061,150.0,0.00032875,60]
[359555741,1746121052326,150.0,0.00032876,60]
[359555742,1746121059188,205.2143154,0.00032876,60]
[359555743,1746121255817,776.0,0.00032876,120]
[359555744,1746121268772,150.0,0.00032867,60]
[359555745,1746121341886,155.22,0.00027425,30]
[359555746,1746121549294,250.0,0.00017,2]
[359555747,1746121550392,250.0,0.00019,2]
[359555748,1746121550420,50.0,0.00019,2]
[359555757,1746121831536,-350.0,0.00021,2]
[359555758,1746121831547,-151.0,0.00021559,2]
[359555759,1746121831556,-207.4,0.00021559,2]
[359555760,1746121831567,-790.81515664,0.00022813,2]
[359555761,1746121831714,-1308.46593636,0.00022813,2]
[359555762,1746121831724,-151.0,0.00022928,2]
[359555763,1746121831734,-215.0738,0.00022928,2]
[359555764,1746121831743,-400.0,0.00023,2]
[359555765,1746121831753,-1177.17945035,0.00023009,2]
[359555766,1746121831762,-300.0,0.00023016,2]
[359555767,1746121831771,-256.71640878,0.00023017,2]
[359555768,1746121831788,-43.28359122,0.00023017,2]
[359555769,1746121831798,-200.0,0.00023017,2]
[359555770,1746121831808,-748.84362574,0.00023017,2]
[359555771,1746121831820,-450.15637426,0.00023017,2]
[359555772,1746121831830,-1022.932,0.00023018,2]
[359555773,1746121831840,-1340.0,0.00023018,2]
[359555774,1746121831849,-797.0,0.00023018,2]
[359555775,1746121831859,-1043.15162574,0.00023018,2]
[359555776,1746121831871,-162.84837426,0.00023018,2]
[359555777,1746121831880,-178.856,0.00023018,2]
[359555778,1746121831890,-57.61589045,0.00023018,2]
[359555780,1746121837494,-522.38410955,0.00023018,2]
[359555781,1746121837504,-913.0,0.00023018,2]
[359555782,1746121837514,-1449.0,0.00023018,2]
[359555783,1746121837523,-549.0,0.00023018,2]
[359555784,1746121837533,-2070.0,0.00023018,2]
[359555785,1746121837542,-1555.41222951,0.00023018,2]
[359555786,1746121837553,-1467.40062353,0.00023018,2]
[359555787,1746121837565,-862.60682894,0.00023018,2]
[359555788,1746121837586,-807.35583064,0.00023018,2]
[359555789,1746121837602,-2057.22448738,0.00023018,2]
[359555790,1746121837611,-153.0,0.00023018,2]
[359555791,1746121837621,-4003.0,0.00023018,2]
[359555792,1746121837631,-876.0,0.00023018,2]
[359555793,1746121837641,-878.0,0.00023018,2]
[359555794,1746121837651,-151.0,0.00024297,2]
[359555795,1746121837661,-223.0315306,0.00024297,2]
[359555796,1746121837670,-2315.71,0.00024658,2]
[359555797,1746121837680,-1000.0,0.00024658,2]
[359555798,1746121837691,-332.30467,0.000248,7]
[359555799,1746121837701,-332.30467,0.000248,7]
[359555800,1746121837712,-153.787598,0.000248,7]
[359555801,1746121837722,-153.787598,0.000248,7]
[359555802,1746121837731,-199.52,0.00024876,2]
[359555803,1746121837741,-153.787598,0.0002489,7]
[359555804,1746121837751,-153.787598,0.0002489,7]
[359555805,1746121837762,-332.30467,0.000249,7]
[359555806,1746121837772,-332.30467,0.000249,7]
[359555807,1746121837782,-332.30467,0.000249,7]
[359555808,1746121837793,-332.30467,0.000249,7]
[359555809,1746121837803,-153.787598,0.000249,7]
[359555810,1746121837813,-153.787598,0.000249,7]
[359555811,1746121837823,-784.94720911,0.000249,12]
[359555812,1746121837833,-420.0,0.00024986,2]
[359555813,1746121837843,-153.787598,0.0002499,7]
[359555814,1746121837854,-153.787598,0.0002499,7]
[359555815,1746121837865,-151.0,0.00025,7]
[359555816,1746121837875,-332.30467,0.00025,7]
[359555817,1746121837885,-332.30467,0.00025,7]
[359555818,1746121837894,-153.787598,0.00025,7]
[359555819,1746121837904,-153.787598,0.00025,7]
[359555820,1746121837913,-1354.911,0.00025,8]
[359555822,1746121837922,-450.0,0.00025,2]
[359555824,1746121837932,-2293.22507906,0.00025018,2]
[359555825,1746121837941,-1000.0,0.00025098,2]
[359555826,1746121837951,-150.0,0.00025134,2]
[359555827,1746121837961,-154.5,0.00025234,2]
[359555828,1746121837973,-798.71,0.00025244,2]
[359555829,1746121837983,-250.0,0.00025276,2]
[359555830,1746121837993,-487.99484716,0.00025295,2]
[359555831,1746121838006,-2020.97271165,0.00025295,2]
[359555832,1746121838016,-1578.12728835,0.00025296,2]
[359555833,1746121838064,-261.92,0.00025296,2]
[359555834,1746121838080,-642.40194319,0.00025296,2]
[359555835,1746121838091,-1297.47237876,0.00025296,2]
[359555842,1746121839662,-1101.075001,0.00025296,2]
[359555843,1746121839770,-1691.63592498,0.00025296,2]
[359555845,1746121840621,-341.86579367,0.00025296,2]
[359555846,1746121840660,-3191.39276772,0.00025296,2]
[359555847,1746121840671,-368.16999,0.00025296,2]
[359555848,1746121840682,-446.69452164,0.00025296,2]
[359555849,1746121840693,-577.52711363,0.00025296,2]
[359555850,1746121840748,-12401.71727706,0.00025296,2]
[359555851,1746121840758,-280.0,0.00025319,10]
[359555852,1746121840767,-784.94720894,0.00025452,13]
[359555853,1746121840776,-151.0,0.00025666,2]
[359555854,1746121840785,-231.28369723,0.00025666,2]
[359555855,1746121840795,-558.0,0.00025781,2]
[359555856,1746121840804,-879.58366944,0.00025983,2]
[359555857,1746121840813,-784.94720894,0.00026003,14]
[359555858,1746121840822,-923.0,0.00026018,2]
[359555859,1746121840831,-1340.0,0.00026018,2]
[359555860,1746121840841,-797.0,0.00026018,2]
[359555861,1746121840850,-1206.0,0.00026018,2]
[359555862,1746121840859,-580.0,0.00026018,2]
[359555863,1746121840869,-913.0,0.00026018,2]
[359555864,1746121840878,-1449.0,0.00026018,2]
[359555865,1746121840888,-411.581,0.00026018,2]
[359555866,1746121840898,-2070.0,0.00026018,2]
[359555867,1746121840908,-6750.0,0.00026018,2]
[359555868,1746121840919,-153.0,0.00026018,2]
[359555869,1746121840931,-4003.0,0.00026018,2]
[359555870,1746121840941,-876.0,0.00026018,2]
[359555871,1746121840950,-878.0,0.00026018,2]
[359555872,1746121840961,-2097.3303242,0.00026029,4]
[359555873,1746121840971,-166.66,0.00026053,2]
[359555874,1746121840981,-151.0,0.000261,7]
[359555875,1746121840990,-153.787598,0.000262,7]
[359555876,1746121841000,-153.787598,0.000262,7]
[359555877,1746121841009,-199.52,0.00026246,2]
[359555878,1746121841018,-534.42104156,0.00026261,2]
[359555879,1746121841027,-153.787598,0.0002639,7]
[359555880,1746121841036,-153.787598,0.0002639,7]
[359555881,1746121841046,-332.30467,0.000264,7]
[359555882,1746121841055,-332.30467,0.000264,7]
[359555883,1746121841064,-153.787598,0.000265,7]
[359555884,1746121841074,-153.787598,0.000265,7]
[359555885,1746121841083,-784.94720894,0.00026555,15]
[359555886,1746121841093,-193.32,0.00026561,2]
[359555887,1746121841102,-151.0,0.00026878,7]
[359555888,1746121841111,-166.66,0.00026913,2]
[359555889,1746121841121,-500.0,0.00027,2]
[359555890,1746121841130,-332.30467,0.00027007,7]
[359555891,1746121841139,-332.30467,0.00027007,7]
[359555892,1746121841148,-151.0,0.00027035,2]
[359555893,1746121841157,-239.84119403,0.00027035,2]
[359555894,1746121841166,-801.26,0.00027039,2]
[359555895,1746121841175,-801.26,0.00027039,2]
[359555896,1746121841184,-801.26,0.00027039,2]
[359555897,1746121841193,-5569.0,0.000271,3]
[359555898,1746121841201,-784.94720894,0.00027107,16]
[359555899,1746121841210,-587.0,0.00027123,2]
[359555900,1746121841219,-200.0,0.0002718,2]
[359555901,1746121841227,-4598.39822946,0.00027297,2]
[359555902,1746121841236,-4334.1994594,0.00027385,2]
[359555903,1746121841245,-153.787598,0.00027388,7]
[359555904,1746121841254,-153.787598,0.00027388,7]
[359555905,1746121841263,-24193.63065946,0.00027389,2]
[359555906,1746121841272,-10331.6194122,0.00027394,2]
[359555907,1746121841282,-8943.1666411,0.00027394,2]
[359555908,1746121841291,-6336.47,0.00027397,2]
[359555909,1746121841301,-300.0,0.00027397,2]
[359555910,1746121841310,-1000.0,0.00027397,2]
[359555911,1746121841319,-174.54,0.00027397,10]
[359555912,1746121841329,-33729.64542153,0.00027399,2]
[359555913,1746121841339,-151.0,0.00027399,7]
[359555914,1746121841348,-151.0,0.00027399,7]
[359555915,1746121841358,-151.0,0.00027399,7]
[359555916,1746121841367,-151.0,0.00027399,7]
[359555917,1746121841377,-171.949881,0.00027399,7]
[359555918,1746121841386,-151.0,0.00027399,7]
[359555919,1746121841396,-299.869671,0.00027399,7]
[359555920,1746121841408,-299.869671,0.00027399,7]
[359555921,1746121841419,-239.009783,0.00027399,7]
[359555922,1746121841430,-239.009783,0.00027399,7]
[359555923,1746121841439,-151.0,0.00027399,7]
[359555924,1746121841450,-255.658181,0.00027399,7]
[359555925,1746121841460,-151.0,0.00027399,7]
[359555926,1746121841470,-255.658181,0.00027399,7]
[359555927,1746121841481,-151.0,0.00027399,7]
[359555928,1746121841490,-151.0,0.00027399,7]
[359555929,1746121841499,-151.0,0.00027399,7]
[359555930,1746121841511,-681.902131,0.00027399,7]
[359555931,1746121841520,-681.902131,0.00027399,7]
[359555932,1746121841530,-151.0,0.00027399,7]
[359555933,1746121841540,-283.415114,0.00027399,7]
[359555934,1746121841551,-283.415114,0.00027399,7]
[359555935,1746121841560,-151.0,0.00027399,7]
[359555936,1746121841569,-151.0,0.00027399,7]
[359555937,1746121841580,-327.824189,0.00027399,7]
[359555938,1746121841590,-151.0,0.00027399,7]
[359555939,1746121841600,-327.824189,0.00027399,7]
[359555940,1746121841610,-151.0,0.00027399,7]
[359555941,1746121841619,-151.0,0.00027399,7]
[359555942,1746121841629,-151.0,0.00027399,7]
[359555943,1746121841639,-329.89671221,0.00027399,2]
[359555944,1746121841649,-332.30467,0.00027399,7]
[359555945,1746121841659,-332.30467,0.00027399,7]
[359555946,1746121841668,-153.787598,0.00027399,7]
[359555947,1746121841678,-153.787608,0.00027399,7]
[359555948,1746121841687,-332.62789848,0.00027399,2]
[359555949,1746121841697,-217.35718442,0.00027399,2]
[359555950,1746121841707,-498.0,0.000274,2]
[359555951,1746121841716,-88373.7698068,0.00027414,2]
[359555952,1746121841726,-500.0,0.00027499,10]
[359555953,1746121841736,-194.03042858,0.000275,2]
[359555954,1746121841746,-239.009783,0.000275,7]
[359555955,1746121841755,-239.009783,0.000275,7]
[359555956,1746121841764,-500.0,0.00027589,2]
[359555957,1746121841774,-500.0,0.00027589,2]
[359555958,1746121841784,-554.10289575,0.00027589,2]
[359555959,1746121841793,-500.0,0.00027589,2]
[359555960,1746121841804,-500.0,0.00027589,2]
[359555961,1746121841813,-500.0,0.00027589,2]
[359555962,1746121841824,-500.0,0.00027589,2]
[359555963,1746121841835,-296.29760459,0.00027589,2]
[359555964,1746121841845,-205.80861041,0.00027589,2]
[359555965,1746121841855,-500.0,0.00027589,2]
[359555966,1746121841866,-236.98421131,0.00027589,2]
[359555967,1746121841876,-219.97505823,0.00027589,2]
[359555968,1746121841885,-437.585238,0.00027589,2]
[359555969,1746121841894,-500.0,0.00027589,2]
[359555970,1746121841904,-169.53563721,0.00027589,2]
[359555971,1746121841914,-283.81765807,0.00027589,2]
[359555972,1746121841923,-150.0,0.00027589,2]
[359555973,1746121841932,-29096.3261658,0.0002759,2]
[359555974,1746121841942,-151.0,0.000276,7]
[359555975,1746121841951,-681.902131,0.000276,7]
[359555976,1746121841961,-681.902131,0.000276,7]
[359555977,1746121841971,-5569.0,0.000276,5]
[359555978,1746121841980,-199.52,0.00027616,2]
[359555979,1746121841990,-784.94720894,0.00027659,17]
[359555980,1746121842002,-500.0,0.00027699,10]
[359555981,1746121842013,-153.092207,0.000277,7]
[359555982,1746121842022,-299.869671,0.000277,7]
[359555983,1746121842032,-299.869671,0.000277,7]
[359555984,1746121842042,-150.0,0.00027736,2]
[359555985,1746121842051,-166.66,0.00027773,2]
[359555986,1746121842061,-264.0,0.0002778,2]
[359555987,1746121842071,-500.0,0.00027799,10]
[359555988,1746121842081,-151.0,0.000278,7]
[359555989,1746121842091,-151.0,0.000278,7]
[359555990,1746121842101,-2951.29299005,0.00027831,2]
[359555991,1746121842111,-182.0,0.00027851,15]
[359555992,1746121842120,-151.0,0.000279,7]
[359555993,1746121842130,-151.0,0.000279,7]
[359555994,1746121842139,-193.32,0.00027931,2]
[359555995,1746121842149,-58192.6523316,0.0002799,2]
[359555996,1746121842159,-500.0,0.00027999,10]
[359555997,1746121842170,-500.0,0.00027999,10]
[359555998,1746121842179,-500.0,0.00027999,10]
[359555999,1746121842189,-500.0,0.00027999,10]
[359556000,1746121842199,-283.415114,0.00027999,7]
[359556001,1746121842209,-283.415114,0.00027999,7]
[359556002,1746121842218,-151.0,0.00027999,7]
[359556003,1746121842228,-6853.17201766,0.00028,14]
[359556005,1746121842242,-93146.82798234,0.00028,14]
[359556006,1746121842252,-277.41,0.00028,2]
[359556007,1746121842262,-157.267646,0.00028,7]
[359556008,1746121842271,-19247.90506926,0.00028,2]
[359556009,1746121842280,-239.009783,0.00028,7]
[359556010,1746121842290,-239.009783,0.00028,7]
[359556011,1746121842300,-151.0,0.00028,7]
[359556012,1746121842309,-384.95810139,0.00028,2]
[359556013,1746121842319,-255.658181,0.00028,7]
[359556014,1746121842328,-151.0,0.00028,7]
[359556015,1746121842339,-255.658181,0.00028,7]
[359556016,1746121842349,-193.290319,0.00028,7]
[359556017,1746121842358,-151.0,0.00028,7]
[359556018,1746121842368,-151.0,0.00028,7]
[359556019,1746121842378,-681.902131,0.00028,7]
[359556020,1746121842387,-681.902131,0.00028,7]
[359556021,1746121842397,-151.0,0.00028,7]
[359556022,1746121842411,-151.0,0.00028,7]
[359556023,1746121842420,-283.415114,0.00028,7]
[359556024,1746121842430,-283.415112,0.00028,7]
[359556025,1746121842440,-151.0,0.00028,7]
[359556026,1746121842451,-151.0,0.00028,7]
[359556027,1746121842461,-327.824189,0.00028,7]
[359556028,1746121842471,-151.0,0.00028,7]
[359556029,1746121842482,-327.824189,0.00028,7]
[359556030,1746121842491,-151.0,0.00028,7]
[359556031,1746121842501,-151.0,0.00028,7]
[359556032,1746121842511,-162.021041,0.00028,7]
[359556033,1746121842520,-332.30467,0.00028,7]
[359556034,1746121842531,-332.30467,0.00028,7]
[359556035,1746121842540,-4598.39822937,0.00028131,2]
[359556036,1746121842550,-784.94720894,0.0002821,18]
[359556037,1746121842559,-1000.0,0.00028236,2]
[359556038,1746121842568,-151.0,0.00028404,2]
[359556039,1746121842578,-248.71531821,0.00028404,2]
[359556040,1746121842588,-29096.3261658,0.00028405,2]
[359556041,1746121842598,-1105.96,0.00028425,2]
[359556042,1746121842608,-150.0,0.00028558,2]
[359556043,1746121842617,-150.0,0.00028558,2]
[359556044,1746121842627,-2951.29299003,0.00028583,2]
[359556045,1746121842638,-166.66,0.00028633,2]
[359556046,1746121842649,-217.35718436,0.00028637,2]
[359556047,1746121842659,-151.0,0.000287,7]
[359556048,1746121842669,-151.0,0.000287,7]
[359556049,1746121842678,-1047.918709,0.000287,7]
[359556050,1746121842688,-1047.918709,0.000287,7]
[359556051,1746121842698,-20284.2677188,0.00028757,2]
[359556052,1746121842707,-784.94720894,0.00028762,19]
[359556053,1746121842717,-6336.47,0.00028767,2]
[359556054,1746121842727,-264.0,0.0002877,2]
[359556055,1746121842737,-332.62789848,0.00028843,2]
[359556056,1746121842746,-29096.3261658,0.00028951,2]
[359556057,1746121842756,-20284.2677188,0.00028951,2]
[359556058,1746121842766,-455.93,0.00028956,2]
[359556059,1746121842775,-455.93,0.00028956,2]
[359556060,1746121842785,-455.93,0.00028956,2]
[359556061,1746121842795,-29096.3261658,0.0002896,2]
[359556062,1746121842805,-2327.66679839,0.0002896,2]
[359556086,1746121843509,-1103.0,0.000274,2]
[359556087,1746121843519,-8147.00000006,0.0002896,2]
[359556088,1746121843532,-9809.60092035,0.0002896,2]
[359556089,1746121843542,-4598.39822937,0.00028964,2]
[359556090,1746121843551,-151.0,0.0002897,7]
[359556091,1746121843561,-151.0,0.0002897,7]
[359556092,1746121843571,-151.0,0.0002897,7]
[359556093,1746121843580,-151.0,0.0002897,7]
[359556094,1746121843589,-151.0,0.0002897,7]
[359556095,1746121843599,-151.0,0.0002897,7]
[359556096,1746121843608,-151.0,0.0002897,7]
[359556097,1746121843617,-159.251006,0.0002897,7]
[359556098,1746121843627,-151.0,0.0002897,7]
[359556099,1746121843636,-652.447531,0.0002897,7]
[359556100,1746121843646,-151.0,0.0002897,7]
[359556101,1746121843655,-153.226678,0.0002897,7]
[359556102,1746121843664,-652.447531,0.0002897,7]
[359556103,1746121843674,-151.0,0.0002897,7]
[359556104,1746121843683,-151.0,0.0002897,7]
[359556105,1746121843693,-202.148189,0.0002897,7]
[359556106,1746121843702,-152.452822,0.0002897,7]
[359556107,1746121843711,-151.0,0.0002897,7]
[359556108,1746121843721,-2247.76701,0.0002897,7]
[359556109,1746121843730,-2247.76701,0.0002897,7]
[359556110,1746121843740,-151.0,0.0002897,7]
[359556111,1746121843748,-151.0,0.0002897,7]
[359556112,1746121843758,-151.0,0.0002897,7]
[359556113,1746121843767,-292.386008,0.0002897,7]
[359556114,1746121843776,-292.386008,0.0002897,7]
[359556115,1746121843786,-151.0,0.0002897,7]
[359556116,1746121843796,-724.400742,0.0002897,7]
[359556117,1746121843805,-29096.3261658,0.0002897,2]
[359556118,1746121843814,-20284.2677188,0.0002897,2]
[359556119,1746121843823,-500.0,0.00028973,5]
[359556120,1746121843834,-20284.2677188,0.00028978,2]
[359556121,1746121843844,-151.735998,0.00028979,7]
[359556122,1746121843853,-151.0,0.00028979,7]
[359556123,1746121843862,-156.051641,0.0002898,7]
[359556124,1746121843871,-151.0,0.0002898,7]
[359556125,1746121843881,-151.0,0.0002898,7]
[359556126,1746121843891,-151.0,0.0002898,7]
[359556127,1746121843900,-151.0,0.0002898,7]
[359556128,1746121843910,-1754.062277,0.0002898,7]
[359556129,1746121843919,-1754.062277,0.0002898,7]
[359556130,1746121843928,-151.0,0.0002898,7]
[359556131,1746121843938,-151.0,0.0002898,7]
[359556132,1746121843949,-151.0,0.0002898,7]
[359556133,1746121843960,-151.0,0.0002898,7]